fUST/lending_fUST_20250801
["ID","MTS","AMOUNT","RATE_DAILY","PERIOD"]
[376480791,1753992651159,-460.0,0.00019726,2]
[376480793,1753992651169,-460.0,0.00019726,2]
[376480795,1753992651178,-3242.99,0.00019726,2]
[376480797,1753992651187,-460.0,0.00019726,2]
[376480799,1753992651196,-460.0,0.00019726,2]
[376480801,1753992651205,-460.0,0.00019726,2]
[376480803,1753992651214,-472.0,0.00019726,2]
[376480805,1753992651223,-622.23,0.00019726,2]
[376480807,1753992651231,-460.0,0.00019726,2]
[376480809,1753992651240,-906.16,0.00019726,2]
[376480811,1753992651250,-702.88,0.00019726,2]
[376480813,1753992651259,-460.0,0.00019726,2]
[376480815,1753992651267,-460.0,0.00019726,2]
[376480817,1753992651276,-750.5,0.00019726,2]
[376480819,1753992651285,-460.0,0.00019726,2]
[376480820,1753992651295,-426.57697683,0.00019726,2]
[376480822,1753992651304,-460.0,0.00019726,2]
[376480824,1753992651313,-5504.7,0.00019726,2]
[376480826,1753992651322,-734.59,0.00019726,2]
[376480828,1753992651331,-168.35748362,0.00019726,2]
[376480830,1753992651340,-460.0,0.00019726,2]
[376480832,1753992651349,-803.88,0.00019726,2]
[376480834,1753992651359,-460.0,0.00019726,2]
[376480836,1753992651368,-774.99,0.00019726,2]
[376480838,1753992651378,-923.43,0.00019726,2]
[376480839,1753992651387,-460.0,0.00019726,2]
[376480840,1753992651396,-460.0,0.00019726,2]
[376480841,1753992651405,-868.05,0.00019726,2]
[376480842,1753992651414,-572.86947525,0.00019726,2]
[376480843,1753992651423,-751.43,0.00019726,2]
[376480844,1753992651432,-460.0,0.00019726,2]
[376480845,1753992651441,-1469.6,0.00019726,2]
[376480846,1753992651450,-460.0,0.00019726,2]
[376480847,1753992651459,-460.0,0.00019726,2]
[376480848,1753992651468,-283.44721553,0.00019726,2]
[376480849,1753992651478,-460.0,0.00019726,2]
[376480850,1753992651487,-736.37,0.00019726,2]
[376480851,1753992651496,-460.0,0.00019726,2]
[376480852,1753992651505,-460.0,0.00019726,2]
[376480853,1753992651514,-452.93764178,0.00019726,2]
[376480854,1753992651523,-460.0,0.00019726,2]
[376480855,1753992651532,-833.54,0.00019726,2]
[376480856,1753992651542,-460.0,0.00019726,2]
[376480857,1753992651550,-865.22,0.00019726,2]
[376480858,1753992651559,-460.0,0.00019726,2]
[376480859,1753992651568,-2612.28,0.00019726,2]
[376480860,1753992651578,-460.0,0.00019726,2]
[376480861,1753992651587,-2405.18,0.00019726,2]
[376480862,1753992651596,-1459.37,0.00019726,2]
[376480864,1753992651605,-1539.54,0.00019726,2]
[376480865,1753992651614,-460.0,0.00019726,2]
[376480867,1753992651633,-460.0,0.00019726,2]
[376480869,1753992651643,-3444.98,0.00019726,2]
[376480871,1753992651653,-2412.48,0.00019726,2]
[376480873,1753992651665,-460.0,0.00019726,2]
[376480875,1753992651674,-460.0,0.00019726,2]
[376480878,1753992651685,-460.0,0.00019726,2]
[376480880,1753992651694,-3313.16,0.00019726,2]
[376480882,1753992651704,-460.0,0.00019726,2]
[376480884,1753992651713,-460.0,0.00019726,2]
[376480886,1753992651722,-460.0,0.00019726,2]
[376480888,1753992651731,-460.0,0.00019726,2]
[376480890,1753992651740,-460.0,0.00019726,2]
[376480892,1753992651749,-460.0,0.00019726,2]
[376480894,1753992651758,-460.0,0.00019726,2]
[376480896,1753992651767,-460.0,0.00019726,2]
[376480898,1753992651776,-460.0,0.00019726,2]
[376480900,1753992651786,-460.0,0.00019726,2]
[376480902,1753992651795,-460.0,0.00019726,2]
[376480904,1753992651804,-682.17,0.00019726,2]
[376480906,1753992651813,-529.98382494,0.00019726,2]
[376480908,1753992651822,-539.31,0.00019726,2]
[376480910,1753992651831,-641.75,0.00019726,2]
[376480912,1753992651840,-151.0,0.00019726,2]
[376480914,1753992651849,-526.87097118,0.00019726,2]
[376480916,1753992651859,-151.0,0.00019726,2]
[376480917,1753992651868,-460.0,0.00019726,2]
[376480920,1753992651882,-743.96,0.00019726,2]
[376480922,1753992651892,-460.0,0.00019726,2]
[376480924,1753992651901,-460.0,0.00019726,2]
[376480925,1753992651912,-2548.5,0.00019726,2]
[376480927,1753992651922,-204.362749,0.00019726,2]
[376480929,1753992651932,-954.79,0.00019726,2]
[376480931,1753992651941,-7913.01,0.00019726,2]
[376480933,1753992651951,-7531.09,0.00019726,2]
[376480936,1753992651961,-204.362749,0.00019726,2]
[376480938,1753992651970,-2692.51,0.00019726,2]
[376480940,1753992651979,-420.05009567,0.00019726,2]
[376480942,1753992651989,-460.0,0.00019726,2]
[376480943,1753992651998,-818.96,0.00019726,2]
[376480945,1753992652008,-562.28,0.00019726,2]
[376480947,1753992652018,-460.0,0.00019726,2]
[376480950,1753992652027,-460.0,0.00019726,2]
[376480952,1753992652036,-460.0,0.00019726,2]
[376480954,1753992652046,-460.0,0.00019726,2]
[376480956,1753992652055,-460.0,0.00019726,2]
[376480957,1753992652064,-3255.93,0.00019726,2]
[376480959,1753992652073,-151.0,0.00019726,2]
[376480962,1753992652083,-460.0,0.00019726,2]
[376480964,1753992652092,-460.0,0.00019726,2]
[376480966,1753992652101,-460.0,0.00019726,2]
[376480968,1753992652110,-460.0,0.00019726,2]
[376480970,1753992652119,-460.0,0.00019726,2]
[376480972,1753992652128,-460.0,0.00019726,2]
[376480974,1753992652137,-797.02,0.00019726,2]
[376480976,1753992652146,-151.0,0.00019726,2]
[376480978,1753992652157,-808.48,0.00019726,2]
[376480980,1753992652166,-151.0,0.00019726,2]
[376480998,1753992652326,-844.99,0.00019726,2]
[376481000,1753992652336,-793.26,0.00019726,2]
[376481002,1753992652346,-460.0,0.00019726,2]
[376481004,1753992652355,-460.0,0.00019726,2]
[376481006,1753992652365,-460.0,0.00019726,2]
[376481008,1753992652374,-1355.93,0.00019726,2]
[376481010,1753992652384,-460.0,0.00019726,2]
[376481012,1753992652393,-1670.54,0.00019726,2]
[376481014,1753992652402,-460.0,0.00019726,2]
[376481016,1753992652412,-460.0,0.00019726,2]
[376481017,1753992652422,-460.0,0.00019726,2]
[376481019,1753992652431,-471.86,0.00019726,2]
[376481021,1753992652440,-592.5,0.00019726,2]
[376481023,1753992652450,-460.0,0.00019726,2]
[376481026,1753992652461,-460.0,0.00019726,2]
[376481027,1753992652470,-460.0,0.00019726,2]
[376481029,1753992652480,-460.0,0.00019726,2]
[376481031,1753992652490,-1048.65,0.00019726,2]
[376481033,1753992652499,-460.0,0.00019726,2]
[376481035,1753992652508,-460.0,0.00019726,2]
[376481037,1753992652518,-921.2,0.00019726,2]
[376481039,1753992652527,-460.0,0.00019726,2]
[376481041,1753992652538,-460.0,0.00019726,2]
[376481043,1753992652547,-460.0,0.00019726,2]
[376481045,1753992652556,-151.0,0.00019726,2]
[376481047,1753992652566,-3558.48,0.00019726,2]
[376481050,1753992652575,-151.0,0.00019726,2]
[376481051,1753992652585,-553.37,0.00019726,2]
[376481053,1753992652594,-481.29,0.00019726,2]
[376481056,1753992652604,-484.2,0.00019726,2]
[376481057,1753992652613,-183.46590921,0.00019726,2]
[376481060,1753992652622,-500.79621471,0.00019773,2]
[376481062,1753992652632,-501.72687444,0.00019773,2]
[376481063,1753992652641,-500.0,0.00019773,2]
[376481065,1753992652650,-500.0,0.00019773,2]
[376481067,1753992652660,-503.53538674,0.00019773,2]
[376481069,1753992652669,-500.0,0.00019773,2]
[376481071,1753992652679,-500.0,0.00019773,2]
[376481073,1753992652688,-500.0,0.00019773,2]
[376481075,1753992652697,-500.0,0.00019773,2]
[376481077,1753992652706,-500.0,0.00019773,2]
[376481079,1753992652715,-500.0,0.00019773,2]
[376481081,1753992652724,-500.0,0.00019773,2]
[376481084,1753992652734,-500.0,0.00019773,2]
[376481085,1753992652743,-500.0,0.00019773,2]
[376481088,1753992652753,-500.0,0.00019773,2]
[376481090,1753992652762,-816.0,0.00019773,2]
[376481092,1753992652771,-150.60448549,0.00019818,2]
[376481094,1753992652780,-183.46590921,0.00019836,2]
[376481095,1753992652789,-151.0,0.000199,2]
[376481097,1753992652798,-151.0,0.000199,2]
[376481099,1753992652807,-624.7590982,0.000199,2]
[376481102,1753992652817,-9711.88079627,0.000199,2]
[376481104,1753992652826,-187.948996,0.000199,2]
[376481106,1753992652835,-183.46590921,0.00019918,2]
[376481108,1753992652844,-156.332005,0.00019968,3]
[376481110,1753992652854,-500.0,0.00019973,2]
[376481111,1753992652863,-200.0,0.00019973,2]
[376481113,1753992652872,-565.81,0.00019999,2]
[376481115,1753992652886,-2467.09,0.00019999,2]
[376481117,1753992652895,-460.0,0.00019999,2]
[376481119,1753992652904,-1731.99,0.00019999,2]
[376481121,1753992652914,-460.0,0.00019999,2]
[376481123,1753992652923,-460.0,0.00019999,2]
[376481125,1753992652932,-748.55,0.00019999,2]
[376481127,1753992652942,-460.0,0.00019999,2]
[376481129,1753992652952,-1147.33,0.00019999,2]
[376481131,1753992652961,-480.28,0.00019999,2]
[376481133,1753992652970,-1145.57484805,0.0002,2]
[376481135,1753992652979,-460.0,0.0002,2]
[376481137,1753992652987,-151.0,0.0002,2]
[376481139,1753992652997,-518.28,0.0002,2]
[376481141,1753992653006,-151.0,0.0002,2]
[376481143,1753992653014,-460.0,0.0002,2]
[376481145,1753992653024,-508.1,0.0002,2]
[376481147,1753992653033,-460.0,0.0002,2]
[376481149,1753992653042,-460.0,0.0002,2]
[376481151,1753992653051,-460.0,0.0002,2]
[376481153,1753992653060,-460.0,0.0002,2]
[376481155,1753992653069,-460.0,0.0002,2]
[376481157,1753992653079,-151.0,0.0002,2]
[376481159,1753992653088,-460.0,0.0002,2]
[376481161,1753992653097,-460.0,0.0002,2]
[376481163,1753992653106,-167.069805,0.0002,2]
[376481165,1753992653115,-460.0,0.0002,2]
[376481167,1753992653124,-460.0,0.0002,2]
[376481169,1753992653133,-151.0,0.0002,2]
[376481171,1753992653142,-384.7377572,0.0002,2]
[376481173,1753992653151,-460.0,0.0002,2]
[376481175,1753992653160,-460.0,0.0002,2]
[376481177,1753992653169,-460.0,0.0002,2]
[376481179,1753992653178,-151.0,0.0002,2]
[376481181,1753992653187,-1082.89,0.0002,2]
[376481183,1753992653196,-834.81,0.0002,2]
[376481185,1753992653205,-543.74,0.0002,2]
[376481187,1753992653214,-460.0,0.0002,2]
[376481189,1753992653223,-460.0,0.0002,2]
[376481191,1753992653232,-460.0,0.0002,2]
[376481193,1753992653241,-460.0,0.0002,2]
[376481195,1753992653250,-151.0,0.0002,2]
[376481197,1753992653259,-311.78511252,0.0002,2]
[376481199,1753992653268,-460.0,0.0002,2]
[376481201,1753992653277,-640.74,0.0002,2]
[376481203,1753992653286,-283.61175225,0.0002,2]
[376481205,1753992653295,-460.0,0.0002,2]
[376481207,1753992653304,-460.0,0.0002,2]
[376481209,1753992653313,-460.0,0.0002,2]
[376481211,1753992653322,-478.96,0.0002,2]
[376481212,1753992653331,-460.0,0.0002,2]
[376481215,1753992653340,-151.0,0.0002,2]
[376481216,1753992653350,-460.0,0.0002,2]
[376481218,1753992653359,-460.0,0.0002,2]
[376481220,1753992653367,-696.25,0.0002,2]
[376481222,1753992653377,-407.78227025,0.0002,2]
[376481224,1753992653386,-506.64579049,0.0002,2]
[376481226,1753992653395,-513.77,0.0002,2]
[376481228,1753992653404,-1007.37,0.0002,2]
[376481230,1753992653414,-460.0,0.0002,2]
[376481233,1753992653423,-151.0,0.0002,2]
[376481235,1753992653433,-460.0,0.0002,2]
[376481237,1753992653442,-460.0,0.0002,2]
[376481238,1753992653451,-460.0,0.0002,2]
[376481241,1753992653461,-291.80024369,0.0002,2]
[376481243,1753992653470,-419.52926777,0.0002,2]
[376481244,1753992653480,-460.0,0.0002,2]
[376481247,1753992653490,-543.8,0.0002,2]
[376481249,1753992653499,-460.0,0.0002,2]
[376481251,1753992653509,-460.0,0.0002,2]
[376481253,1753992653518,-151.0,0.0002,2]
[376481255,1753992653528,-487.29,0.0002,2]
[376481257,1753992653541,-460.0,0.0002,2]
[376481259,1753992653550,-460.0,0.0002,2]
[376481261,1753992653559,-151.0,0.0002,2]
[376481263,1753992653569,-460.0,0.0002,2]
[376481265,1753992653579,-460.0,0.0002,2]
[376481267,1753992653589,-179.844671,0.0002,2]
[376481269,1753992653600,-460.0,0.0002,2]
[376481271,1753992653610,-460.0,0.0002,2]
[376481273,1753992653619,-179.844671,0.0002,2]
[376481275,1753992653629,-663.86,0.0002,2]
[376481277,1753992653639,-460.0,0.0002,2]
[376481279,1753992653649,-460.0,0.0002,2]
[376481281,1753992653659,-151.0,0.0002,2]
[376481283,1753992653669,-151.0,0.0002,2]
[376481285,1753992653678,-476.2533535,0.0002,2]
[376481287,1753992653688,-460.0,0.0002,2]
[376481289,1753992653697,-460.0,0.0002,2]
[376481291,1753992653707,-484.16,0.0002,2]
[376481293,1753992653718,-460.0,0.0002,2]
[376481295,1753992653728,-151.0,0.0002,2]
[376481298,1753992653737,-151.0,0.0002,2]
[376481300,1753992653747,-253.12936863,0.0002,2]
[376481302,1753992653756,-691.12,0.0002,2]
[376481303,1753992653765,-460.0,0.0002,2]
[376481306,1753992653775,-518.8,0.0002,2]
[376481308,1753992653784,-460.0,0.0002,2]
[376481309,1753992653794,-460.0,0.0002,2]
[376481312,1753992653804,-460.0,0.0002,2]
[376481313,1753992653813,-511.93,0.0002,2]
[376481316,1753992653823,-460.0,0.0002,2]
[376481317,1753992653832,-460.0,0.0002,2]
[376481319,1753992653842,-473.01884688,0.0002,2]
[376481321,1753992653851,-262.58894371,0.0002,2]
[376481322,1753992653860,-460.0,0.0002,2]
[376481323,1753992653871,-460.0,0.0002,2]
[376481324,1753992653882,-460.0,0.0002,2]
[376481325,1753992653891,-460.0,0.0002,2]
[376481326,1753992653901,-633.78,0.0002,2]
[376481327,1753992653911,-460.0,0.0002,2]
[376481329,1753992653923,-460.0,0.0002,2]
[376481331,1753992653932,-460.0,0.0002,2]
[376481333,1753992653942,-3242.99,0.0002,2]
[376481335,1753992653952,-472.0,0.0002,2]
[376481337,1753992653963,-622.23,0.0002,2]
[376481339,1753992653972,-378.9579441,0.0002,2]
[376481341,1753992653982,-906.16,0.0002,2]
[376481344,1753992653991,-702.88,0.0002,2]
[376481346,1753992654001,-460.0,0.0002,2]
[376481348,1753992654010,-750.5,0.0002,2]
[376481349,1753992654019,-460.0,0.0002,2]
[376481352,1753992654029,-5504.7,0.0002,2]
[376481354,1753992654038,-734.59,0.0002,2]
[376481356,1753992654048,-460.0,0.0002,2]
[376481358,1753992654059,-460.0,0.0002,2]
[376481360,1753992654068,-803.88,0.0002,2]
[376481362,1753992654078,-774.99,0.0002,2]
[376481364,1753992654087,-923.43,0.0002,2]
[376481365,1753992654096,-460.0,0.0002,2]
[376481367,1753992654106,-868.05,0.0002,2]
[376481370,1753992654115,-751.43,0.0002,2]
[376481372,1753992654125,-1469.6,0.0002,2]
[376481374,1753992654134,-460.0,0.0002,2]
[376481376,1753992654144,-460.0,0.0002,2]
[376481378,1753992654154,-736.37,0.0002,2]
[376481380,1753992654164,-460.0,0.0002,2]
[376481382,1753992654173,-460.0,0.0002,2]
[376481384,1753992654183,-833.54,0.0002,2]
[376481386,1753992654192,-460.0,0.0002,2]
[376481388,1753992654201,-865.22,0.0002,2]
[376481390,1753992654211,-467.24572009,0.0002,2]
[376481392,1753992654220,-2612.28,0.0002,2]
[376481394,1753992654235,-2405.18,0.0002,2]
[376481396,1753992654244,-1459.37,0.0002,2]
[376481398,1753992654253,-1539.54,0.0002,2]
[376481400,1753992654263,-460.0,0.0002,2]
[376481402,1753992654272,-198.0,0.0002,2]
[376481404,1753992654281,-3444.98,0.0002,2]
[376481406,1753992654291,-2412.48,0.0002,2]
[376481408,1753992654300,-460.0,0.0002,2]
[376481410,1753992654320,-460.0,0.0002,2]
[376481412,1753992654341,-3313.16,0.0002,2]
[376481413,1753992654351,-460.0,0.0002,2]
[376481414,1753992654361,-460.0,0.0002,2]
[376481415,1753992654370,-460.0,0.0002,2]
[376481416,1753992654380,-19906.1500136,0.0002,2]
[376481417,1753992654390,-460.0,0.0002,2]
[376481418,1753992654399,-460.0,0.0002,2]
[376481419,1753992654409,-151.0,0.0002,2]
[376481420,1753992654418,-417.54460392,0.0002,2]
[376481421,1753992654427,-460.0,0.0002,2]
[376481422,1753992654437,-682.17,0.0002,2]
[376481423,1753992654446,-646.0,0.0002,2]
[376481424,1753992654455,-539.31,0.0002,2]
[376481425,1753992654465,-641.75,0.0002,2]
[376481426,1753992654474,-151.0,0.0002,2]
[376481427,1753992654483,-467.11568755,0.0002,2]
[376481428,1753992654492,-743.96,0.0002,2]
[376481429,1753992654501,-460.0,0.0002,2]
[376481430,1753992654511,-460.0,0.0002,2]
[376481431,1753992654520,-2548.5,0.0002,2]
[376481432,1753992654529,-204.362749,0.0002,2]
[376481433,1753992654538,-954.79,0.0002,2]
[376481434,1753992654547,-7913.01,0.0002,2]
[376481435,1753992654557,-7531.09,0.0002,2]
[376481436,1753992654566,-204.362749,0.0002,2]
[376481437,1753992654575,-2692.51,0.0002,2]
[376481438,1753992654584,-818.96,0.0002,2]
[376481439,1753992654593,-562.28,0.0002,2]
[376481440,1753992654602,-463.09152355,0.0002,2]
[376481441,1753992654612,-460.0,0.0002,2]
[376481442,1753992654621,-302.0766747,0.0002,2]
[376481443,1753992654630,-3255.93,0.0002,2]
[376481445,1753992654640,-460.0,0.0002,2]
[376481446,1753992654649,-460.0,0.0002,2]
[376481448,1753992654659,-460.0,0.0002,2]
[376481450,1753992654668,-460.0,0.0002,2]
[376481451,1753992654678,-460.0,0.0002,2]
[376481453,1753992654687,-797.02,0.0002,2]
[376481455,1753992654696,-151.0,0.0002,2]
[376481457,1753992654705,-808.48,0.0002,2]
[376481458,1753992654714,-844.99,0.0002,2]
[376481459,1753992654723,-151.0,0.0002,2]
[376481461,1753992654733,-793.26,0.0002,2]
[376481463,1753992654743,-460.0,0.0002,2]
[376481465,1753992654752,-1355.93,0.0002,2]
[376481466,1753992654762,-460.0,0.0002,2]
[376481467,1753992654771,-1670.54,0.0002,2]
[376481468,1753992654780,-460.0,0.0002,2]
[376481469,1753992654790,-460.0,0.0002,2]
[376481470,1753992654917,-460.0,0.0002,2]
[376481471,1753992654928,-471.86,0.0002,2]
[376481473,1753992654938,-592.5,0.0002,2]
[376481475,1753992654948,-460.0,0.0002,2]
[376481476,1753992654961,-460.0,0.0002,2]
[376481478,1753992654971,-460.0,0.0002,2]
[376481480,1753992654980,-460.0,0.0002,2]
[376481482,1753992654989,-1048.65,0.0002,2]
[376481484,1753992654998,-4000.0,0.0002,4]
[376481486,1753992655008,-460.0,0.0002,2]
[376481488,1753992655017,-921.2,0.0002,2]
[376481489,1753992655027,-460.0,0.0002,2]
[376481491,1753992655036,-460.0,0.0002,2]
[376481492,1753992655046,-477.65570464,0.0002,2]
[376481493,1753992655056,-3558.48,0.0002,2]
[376481494,1753992655065,-151.0,0.0002,2]
[376481495,1753992655076,-553.37,0.0002,2]
[376481496,1753992655086,-481.29,0.0002,2]
[376481497,1753992655096,-484.2,0.0002,2]
[376481498,1753992655106,-183.46590921,0.00020027,2]
[376481499,1753992655116,-9711.88079616,0.00020072,2]
[376481500,1753992655127,-816.0,0.00020097,2]
[376481501,1753992655137,-183.46590921,0.0002011,2]
[376481502,1753992655146,-471.09238237,0.00020129,2]
[376481503,1753992655156,-816.0,0.00020137,2]
[376481504,1753992655167,-816.0,0.00020156,2]
[376481505,1753992655177,-1896.03946544,0.00020174,2]
[376481506,1753992655187,-600.0,0.00020177,2]
[376481507,1753992655197,-347.479509,0.00020187,2]
[376481508,1753992655206,-150.0,0.000202,5]
[376481509,1753992655216,-427.0,0.000202,2]
[376481510,1753992655226,-183.46590921,0.00020219,2]
[376481511,1753992655235,-421.8877467,0.00020235,2]
[376481512,1753992655244,-6191.8964719,0.00020245,2]
[376481513,1753992655408,-3519.98432426,0.00020245,2]
[376481514,1753992655418,-151.0,0.00020245,2]
[376481515,1753992655428,-151.0,0.00020245,2]
[376481516,1753992655437,-204.362749,0.00020245,2]
[376481517,1753992655446,-204.362749,0.00020245,2]
[376481518,1753992655456,-151.0,0.00020245,2]
[376481519,1753992655465,-151.0,0.00020245,2]
[376481520,1753992655475,-151.0,0.00020273,2]
[376481521,1753992655485,-151.0,0.00020273,2]
[376481522,1753992655494,-151.0,0.00020273,2]
[376481523,1753992655503,-151.0,0.00020273,2]
[376481524,1753992655512,-151.0,0.00020273,2]
[376481525,1753992655522,-151.0,0.00020273,2]
[376481526,1753992655531,-151.0,0.00020273,2]
[376481527,1753992655540,-1261.292581,0.00020273,2]
[376481528,1753992655549,-151.0,0.00020273,2]
[376481529,1753992655559,-518.28,0.00020273,2]
[376481530,1753992655568,-151.0,0.00020273,2]
[376481531,1753992655577,-508.1,0.00020273,2]
[376481532,1753992655586,-151.0,0.00020273,2]
[376481533,1753992655595,-358.37014456,0.00020273,2]
[376481534,1753992655604,-151.0,0.00020273,2]
[376481535,1753992655613,-460.0,0.00020273,2]
[376481536,1753992655622,-151.0,0.00020273,2]
[376481537,1753992655632,-279.86903766,0.00020273,2]
[376481538,1753992655641,-151.0,0.00020273,2]
[376481539,1753992655650,-460.0,0.00020273,2]
[376481540,1753992655659,-280.35340931,0.00020273,2]
[376481541,1753992655669,-152.114267,0.00020273,7]
[376481542,1753992655679,-460.0,0.00020273,2]
[376481543,1753992655688,-151.0,0.00020273,2]
[376481544,1753992655698,-1082.89,0.00020273,2]
[376481545,1753992655707,-834.81,0.00020273,2]
[376481546,1753992655716,-543.74,0.00020273,2]
[376481547,1753992655725,-460.0,0.00020273,2]
[376481548,1753992655735,-460.0,0.00020273,2]
[376481549,1753992655744,-327.9035012,0.00020273,2]
[376481550,1753992655754,-151.0,0.00020273,2]
[376481551,1753992655764,-574.96052587,0.00020273,2]
[376481552,1753992655774,-640.74,0.00020273,2]
[376481553,1753992655783,-460.0,0.00020273,2]
[376481554,1753992655793,-478.96,0.00020273,2]
[376481555,1753992655802,-151.0,0.00020273,2]
[376481556,1753992655812,-460.0,0.00020273,2]
[376481557,1753992655822,-696.25,0.00020273,2]
[376481558,1753992655832,-513.77,0.00020273,2]
[376481559,1753992655841,-1007.37,0.00020273,2]
[376481560,1753992655851,-300.182397,0.00020273,2]
[376481561,1753992655860,-460.0,0.00020273,2]
[376481562,1753992655872,-460.0,0.00020273,2]
[376481563,1753992655884,-543.8,0.00020273,2]
[376481564,1753992655893,-460.0,0.00020273,2]
[376481565,1753992655903,-460.0,0.00020273,2]
[376481566,1753992655912,-151.0,0.00020273,2]
[376481567,1753992655923,-487.29,0.00020273,2]
[376481568,1753992655932,-460.0,0.00020273,2]
[376481569,1753992655941,-151.0,0.00020273,2]
[376481570,1753992655952,-460.0,0.00020273,2]
[376481571,1753992655962,-460.0,0.00020273,2]
[376481572,1753992655971,-179.844671,0.00020273,2]
[376481573,1753992655981,-460.0,0.00020273,2]
[376481574,1753992655990,-179.844671,0.00020273,2]
[376481575,1753992655999,-663.86,0.00020273,2]
[376481576,1753992656009,-460.0,0.00020273,2]
[376481577,1753992656018,-460.0,0.00020273,2]
[376481578,1753992656027,-151.0,0.00020273,2]
[376481579,1753992656037,-151.0,0.00020273,2]
[376481580,1753992656046,-460.0,0.00020273,2]
[376481581,1753992656055,-460.0,0.00020273,2]
[376481582,1753992656064,-484.16,0.00020273,2]
[376481583,1753992656073,-691.12,0.00020273,2]
[376481584,1753992656083,-460.0,0.00020273,2]
[376481585,1753992656092,-518.8,0.00020273,2]
[376481586,1753992656101,-460.0,0.00020273,2]
[376481587,1753992656111,-460.0,0.00020273,2]
[376481588,1753992656120,-511.93,0.00020273,2]
[376481589,1753992656129,-565.81,0.00020273,2]
[376481590,1753992656138,-460.0,0.00020273,2]
[376481591,1753992656147,-460.0,0.00020273,2]
[376481592,1753992656158,-460.0,0.00020273,2]
[376481593,1753992656168,-460.0,0.00020273,2]
[376481594,1753992656177,-460.0,0.00020273,2]
[376481595,1753992656186,-460.0,0.00020273,2]
[376481596,1753992656195,-633.78,0.00020273,2]
[376481597,1753992656204,-460.0,0.00020273,2]
[376481598,1753992656214,-460.0,0.00020273,2]
[376481599,1753992656223,-460.0,0.00020273,2]
[376481600,1753992656233,-3242.99,0.00020273,2]
[376481601,1753992656243,-472.0,0.00020273,2]
[376481602,1753992656252,-622.23,0.00020273,2]
[376481603,1753992656261,-906.16,0.00020273,2]
[376481604,1753992656270,-702.88,0.00020273,2]
[376481605,1753992656279,-2467.09,0.00020273,2]
[376481606,1753992656288,-750.5,0.00020273,2]
[376481607,1753992656297,-460.0,0.00020273,2]
[376481608,1753992656306,-5504.7,0.00020273,2]
[376481609,1753992656315,-734.59,0.00020273,2]
[376481610,1753992656324,-460.0,0.00020273,2]
[376481611,1753992656337,-803.88,0.00020273,2]